[Event "Polish Youth B18 Championship 2023"]
[Site "Jastrzebia Gora"]
[Date "2023.03.13"]
[Round "3.17"]
[White "Pisarek, Jan"]
[Black "Lis, Maksymilian"]
[Result "0-1"]
[ECO "B01"]
[WhiteElo "1931"]
[BlackElo "1784"]
[Annotator "TA"]
[PlyCount "128"]
[EventDate "2023.03.11"]
[EventType "swiss"]
[EventCountry "POL"]
[SourceTitle "playchess.com"]
[Source "ChessBase"]
[SourceQuality "1"]
[TimeControl "40/5400+30:1800+30"]

{[%evp 10,128,61,59,56,57,57,57,68,49,49,49,49,49,49,53,52,30,30,29,30,23,58,23,30,14,12,9,15,10,44,16,59,37,41,8,66,67,64,60,91,81,166,177,169,91,81,92,106,83,77,0,0,0,0,0,0,0,0,0,0,-29,-28,-29,-29,-66,-51,-102,-59,-368,-354,-371,-390,-372,-320,-464,-459,-446,-434,-396,-397,-356,-296,-841,-802,-767,-719,-1246,-1245,-1077,-903,-1357,-1280,-1164,-652,-1148,-839,-29965,-29966,-29962,-29962,-29968,-29969,-29969,-29970,-5820,-3564,-12793,-7379,-2643,-5624,-2241,-4393,-12797,-12791,-12793,-5595,-29983,-29984,-29984,-29985]} 1. e4 {[%emt 0:00:04]} d5 {[%emt 0:00:05]} 2. exd5 {[%emt 0:00:09]} Qxd5 {[%emt 0:00:05]} 3. Nc3 {[%emt 0:00:09]} Qd8 {[%emt 0:00:06]} 4. d4 {[%emt 0:00:14]} Nf6 {[%emt 0:00:05]} 5. Nf3 {[%emt 0:00:26]} Bg4 {[%emt 0:00:07]} 6. h3 {[%emt 0:00:30]} Bxf3 {[%emt 0:00:06] B01: Scandinavian Defence.} 7. Qxf3 {[%emt 0:00:09]} c6 {[%emt 0:00:03]} 8. Be3 {[%emt 0:00:44]} e6 {[%emt 0:00:07] White is slightly better.} 9. O-O-O {[%emt 0:00:38]} Bb4 {[%emt 0:00:06]} 10. Ne4 {[%emt 0:01:52]} Nxe4 {[%emt 0:02:17]} 11. Qxe4 {[%emt 0:00:08][%cal Od4d5]} Qd5 {[%emt 0:00:11]} 12. Qxd5 {[%emt 0:00:23]} cxd5 {[%emt 0:00:25]} 13. c4 {[%emt 0:00:15]} dxc4 {[%emt 0:00:21]} 14. Bxc4 {[%emt 0:00:14][%cal Bf1c4,Bc4b3,Bb3c2][%mdl 32]} Nd7 {[%emt 0:05:28]} 15. Bb3 {[%emt 0:01:50] [#]} O-O-O $146 {[%emt 0:14:31]} ({Predecessor:} 15... a6 16. d5 Bc5 17. dxe6 Bxe3+ 18. fxe3 fxe6 19. Bxe6 Nc5 20. Bg4 O-O 21. Bf3 a5 {½-½ Asis Gargatagli,H (2475)-Cruz,J (2393) Barcelona GM 5th 2021 (3)}) 16. Kb1 {[%emt 0:14:01]} (16. d5 $5 {[%cal Rd5e6]}) 16... Bd6 {[%emt 0:15:42] Prevents Bf4} 17. d5 {[%emt 0:06:04]} e5 {[%emt 0:00:16]} 18. g4 {[%emt 0:01:11]} ({Don't play} 18. Bxa7 b6 19. Rc1+ Kb7 $15) 18... Kb8 {[%emt 0:04:20]} 19. Rhf1 {[%emt 0:07:29]} Bc5 {[%emt 0:07:38]} 20. Bc2 {[%emt 0:18:46]} Kc7 {[%emt 0:17:34]} 21. Bxc5 {[%emt 0:22:04]} Nxc5 {[%emt 0:00:06]} 22. f4 {[%emt 0:00:40]} (22. b4 $5 {[%cal Rb4c5]} Nd7 23. d6+ Kb8 24. f4 $14) 22... exf4 {[%emt 0:04:22]} (22... e4 $11) 23. Rxf4 $14 {[%emt 0:00:08] aiming for b4.} f6 {[%emt 0:00:06]} 24. b4 {[%emt 0:02:47]} Na6 {[%emt 0:00:56]} 25. Re4 {[%emt 0:07:11][%cal Od5d6]} Rhe8 {[%emt 0:01:51] [#] Dodges d6+} (25... h5 $16) 26. d6+ $1 $18 {[%emt 0:00:47][%mdl 512]} Kb6 {[%emt 0:00:04] [#]} 27. Red4 {[%emt 0:05:05]} (27. Rc4 $1 $18 {Hoping for d7.} Nb8 28. Bxh7) 27... Nb8 $16 {[%emt 0:03:41]} 28. a4 {[%emt 0:06:26][%cal Ba2a4,Ba4a5][%mdl 32] And now a5+ would win.} a6 {[%emt 0:00:54]} 29. a5+ {[%emt 0:00:47]} Ka7 {[%emt 0:00:09]} 30. Ba4 {[%emt 0:01:02]} (30. Bxh7 $16 Nc6 31. Rc4) 30... Re6 $11 {[%emt 0:03:19]} 31. Kb2 {[%emt 0:00:57]} Nc6 {[%emt 0:01:39]} 32. Bxc6 {[%emt 0:00:29]} bxc6 {[%emt 0:00:04][%mdl 4096] Endgame KRR-KRR} 33. R1d3 {[%emt 0:00:47]} Kb7 {[%emt 0:00:52]} 34. Kc3 {[%emt 0:00:50]} Kc8 {[%emt 0:00:41]} 35. Kc4 {[%emt 0:01:17]} Kd7 {[%emt 0:00:06]} 36. h4 {[%emt 0:00:56]} Rb8 {[%emt 0:00:32]} 37. Rd2 {[%emt 0:00:48]} Rb5 {[%emt 0:00:09]} 38. R2d3 {[%emt 0:00:38]} (38. h5 $15) 38... Re1 {[%emt 0:00:23]} 39. Rc3 $2 {[%emt 0:00:28][%mdl 8192] Dodges Rc1} ({White should play} 39. Kc3 $15) 39... Rb1 $19 {[%emt 0:00:42]} 40. Rb3 {[%emt 0:00:00]} Rxb3 {[%emt 0:00:00]} 41. Kxb3 {[%emt 0:00:41] KR-KR} c5 {[%emt 0:01:30][%mdl 64] Deflection} 42. Rd5 {[%emt 0:05:33]} (42. Rd1 $142) 42... Rxb4+ {[%emt 0:01:00]} (42... cxb4 43. Rxb5 axb5 44. a6 $18) 43. Kc3 {[%emt 0:00:20]} Rxg4 {[%emt 0:00:37]} 44. Rxc5 {[%emt 0:00:30]} Kxd6 {[%emt 0:00:13]} (44... Rxh4 $2 {perishes.} 45. Rc7+ Kxd6 46. Rxg7 $19) 45. Rc8 {[%emt 0:00:47]} Ra4 {[%emt 0:00:38]} 46. h5 $2 {[%emt 0:01:25]} (46. Rg8) 46... Rxa5 {[%emt 0:00:08]} 47. Rg8 {[%emt 0:00:35]} Rg5 {[%emt 0:01:27]} 48. h6 {[%emt 0:00:16]} gxh6 {[%emt 0:00:08]} 49. Rh8 {[%emt 0:00:12]} h5 {[%emt 0:01:15]} 50. Rxh7 {[%emt 0:00:06]} a5 {[%emt 0:00:13]} 51. Kd3 {[%emt 0:00:51]} Re5 {[%emt 0:00:18]} 52. Rh8 {[%emt 0:00:20]} Ke6 {[%emt 0:00:15]} 53. Kd2 {[%emt 0:00:19]} Kf7 {[%emt 0:00:09]} 54. Kd1 {[%emt 0:00:46]} Kg6 {[%emt 0:00:08]} 55. Kd2 {[%emt 0:00:10]} Kg5 {[%emt 0:00:05]} 56. Rg8+ {[%emt 0:00:32]} Kf4 {[%emt 0:00:05]} 57. Rh8 {[%emt 0:00:43]} a4 {[%emt 0:00:39] White must now prevent ...Kg3.} 58. Ra8 {[%emt 0:00:29]} Re4 {[%emt 0:00:07] ( -> ...h4)} 59. Rh8 {[%emt 0:00:19]} Kg5 {[%emt 0:00:35] ...h4 would be deadly.} 60. Kd3 {[%emt 0:00:23]} Re1 {[%emt 0:00:07] Strongly threatening ...h4.} 61. Kd2 {[%emt 0:00:39]} Ra1 {[%emt 0:00:10]} 62. Rg8+ {[%emt 0:00:39]} Kf4 {[%emt 0:00:24]} 63. Ke2 {[%emt 0:00:41]} a3 {[%emt 0:00:27][%cal Ba4a3,Ba3a2][%mdl 32]} 64. Ra8 {[%emt 0:01:26]} a2 {[%emt 0:00:07] Quite a comeback for Black.   Weighted Error Value: White=0.68/Black=0.25 (precise)} 0-1

[Event "Polish Youth B18 Championship 2023"]
[Site "Jastrzebia Gora"]
[Date "2023.03.13"]
[Round "3.18"]
[White "Smetek, Michal"]
[Black "Kossowski, Pawel"]
[Result "1-0"]
[ECO "A40"]
[WhiteElo "1787"]
[BlackElo "1766"]
[Annotator "NA RC COMBH"]
[PlyCount "167"]
[EventDate "2023.03.11"]
[EventType "swiss"]
[EventCountry "POL"]
[SourceTitle "playchess.com"]
[Source "ChessBase"]
[SourceQuality "1"]
[TimeControl "40/5400+30:1800+30"]

1. d4 {[%emt 0:00:01]} Nf6 {[%emt 0:00:06]} 2. c4 {[%emt 0:00:04]} e6 {[%emt 0:00:04]} 3. g3 {[%emt 0:00:02]} Bb4+ {[%emt 0:00:06]} 4. Bd2 {[%emt 0:00:26]} Qe7 {[%emt 0:00:06]} 5. Bg2 {[%emt 0:00:15]} Nc6 {[%emt 0:00:43]} 6. a3 {[%emt 0:02:59]} Bxd2+ {[%emt 0:01:03]} 7. Qxd2 {[%emt 0:00:06]} d6 {[%emt 0:01:25]} 8. Nf3 {[%emt 0:03:00]} a5 {[%emt 0:01:20]} 9. O-O {[%emt 0:00:47]} O-O {[%emt 0:00:20]} 10. Nc3 {[%emt 0:00:34]} e5 {[%emt 0:01:50]} 11. dxe5 {[%emt 0:02:38]} Nxe5 {[%emt 0:08:13]} 12. Nxe5 dxe5 {[%emt 0:02:58]} 13. Nd5 {[%emt 0:10:46]} Qd8 {[%emt 0:06:04]} 14. Qe3 {[%emt 0:05:29]} c6 {[%emt 0:05:48]} 15. Nb6 {[%emt 0:04:23]} Ng4 {[%emt 0:02:28]} 16. Qc5 {[%emt 0:06:30]} Ra6 {[%emt 0:00:47]} 17. Nxc8 {[%emt 0:01:00]} Qxc8 {[%emt 0:01:09]} 18. Bh3 {[%emt 0:01:22]} f5 {[%emt 0:03:11]} 19. Bxg4 {[%emt 0:12:21]} fxg4 {[%emt 0:00:33]} 20. Qxe5 {[%emt 0:00:13]} Re8 {[%emt 0:03:16]} 21. Qd4 {[%emt 0:12:37]} c5 {[%emt 0:07:05]} 22. Qd2 {[%emt 0:09:59]} Rd8 {[%emt 0:04:55]} 23. Qc3 {[%emt 0:05:01]} Rh6 {[%emt 0:04:59]} 24. Rad1 {[%emt 0:01:34]} Rf8 {[%emt 0:01:17]} 25. Rd5 {[%emt 0:01:21]} b6 {[%emt 0:02:20]} 26. Rfd1 {[%emt 0:02:19]} Qe8 {[%emt 0:04:30]} 27. e3 {[%emt 0:04:14]} Qf7 {[%emt 0:02:21]} 28. R1d2 {[%emt 0:01:37]} Rf6 {[%emt 0:01:57]} 29. Qc2 {[%emt 0:00:55]} Rf3 {[%emt 0:02:41]} 30. Re5 {[%emt 0:05:07]} Qf6 {[%emt 0:01:44]} 31. Re4 {[%emt 0:00:43]} h5 {[%emt 0:00:45]} 32. Rf4 {[%emt 0:01:15]} Rxf4 {[%emt 0:00:17]} 33. exf4 {[%emt 0:01:16]} Re8 {[%emt 0:01:58]} 34. Re2 {[%emt 0:00:46]} Qc6 {[%emt 0:07:29]} 35. Re5 {[%emt 0:03:03]} Rxe5 {[%emt 0:01:16]} 36. fxe5 {[%emt 0:00:02]} Qd7 {[%emt 0:01:43]} 37. Qe4 {[%emt 0:00:53]} Kf7 {[%emt 0:01:40]} 38. Qd5+ {[%emt 0:00:26]} Ke7 {[%emt 0:00:26]} 39. Kf1 {[%emt 0:01:51]} Qf5 {[%emt 0:01:07]} 40. Kg2 {[%emt 0:00:00]} g6 {[%emt 0:00:00]} 41. Qb7+ Ke8 {[%emt 0:02:20]} 42. Qc6+ {[%emt 0:14:13]} Ke7 {[%emt 0:01:13]} 43. a4 {[%emt 0:02:37]} Qxe5 {[%emt 0:07:11]} 44. Qxg6 {[%emt 0:00:48]} Qe2 {[%emt 0:01:23]} 45. Qg5+ {[%emt 0:00:41]} Kf8 {[%emt 0:02:41]} 46. Qh6+ {[%emt 0:01:00]} Kg8 {[%emt 0:00:38]} 47. Qg6+ {[%emt 0:00:45]} Kf8 {[%emt 0:00:26]} 48. Qf5+ {[%emt 0:00:24]} Kg8 {[%emt 0:01:01]} 49. b3 {[%emt 0:00:29]} Kg7 {[%emt 0:01:08]} 50. Qg5+ {[%emt 0:00:30]} Kf8 {[%emt 0:00:32]} 51. Qe3 {[%emt 0:00:34]} Qd1 {[%emt 0:00:55]} 52. Qh6+ {[%emt 0:01:47]} Ke7 {[%emt 0:04:13]} 53. Qg5+ {[%emt 0:00:36]} Kf8 {[%emt 0:00:50]} 54. Qe3 {[%emt 0:00:39]} Kg7 {[%emt 0:01:39]} 55. f3 {[%emt 0:06:08]} Qc2+ {[%emt 0:03:19]} 56. Kg1 {[%emt 0:00:15]} Qb1+ {[%emt 0:05:57]} 57. Kf2 {[%emt 0:00:43]} Qb2+ {[%emt 0:01:05]} 58. Qe2 {[%emt 0:00:51]} Qd4+ {[%emt 0:01:29]} 59. Kg2 {[%emt 0:00:42]} Qd7 {[%emt 0:02:13]} 60. Qe5+ {[%emt 0:00:40]} Kh6 {[%emt 0:00:45]} 61. Qe3+ {[%emt 0:02:18]} Kg6 {[%emt 0:00:47]} 62. Kf2 {[%emt 0:01:53]} Qd1 {[%emt 0:01:46]} 63. Qe2 {[%emt 0:01:06]} Qd4+ {[%emt 0:00:17]} 64. Kg2 {[%emt 0:00:05]} Qd7 {[%emt 0:00:58]} 65. Qe4+ {[%emt 0:00:37]} Kg7 {[%emt 0:02:12]} 66. Qe5+ {[%emt 0:00:25]} Kg6 {[%emt 0:00:39]} 67. Qd5 {[%emt 0:01:19]} Qg7 {[%emt 0:00:47]} 68. Qe6+ {[%emt 0:01:33]} Kh7 {[%emt 0:00:43]} 69. Qf5+ {[%emt 0:00:06]} Kh6 {[%emt 0:01:56]} 70. Qf4+ {[%emt 0:00:04]} Kh7 {[%emt 0:00:14]} 71. Qe4+ {[%emt 0:00:02]} Kh6 {[%emt 0:00:35]} 72. Qe3+ {[%emt 0:00:09]} Kh7 {[%emt 0:00:12]} 73. Qd3+ {[%emt 0:00:08]} Kh6 {[%emt 0:00:44]} 74. Qd2+ {[%emt 0:00:18]} Kh7 {[%emt 0:00:10]} 75. fxg4 {[%emt 0:00:17]} hxg4 {[%emt 0:00:59]} 76. h3 {[%emt 0:00:37]} gxh3+ {[%emt 0:01:19]} 77. Kxh3 {[%emt 0:00:11]} Qf6 {[%emt 0:00:47]} 78. Qd7+ {[%emt 0:00:31]} Kh6 {[%emt 0:00:27]} 79. Qd2+ {[%emt 0:00:25]} Kg6 {[%emt 0:00:55]} 80. Qd3+ {[%emt 0:00:16]} Kg5 {[%emt 0:00:56]} 81. Qe3+ {[%emt 0:00:14]} Kg6 {[%emt 0:00:12]} 82. Qe4+ {[%emt 0:00:10]} Kg7 {[%emt 0:01:29]} 83. Qg4+ {[%emt 0:00:10]} Kh6 {[%emt 0:00:07]} 84. Qh4+ {[%emt 0:00:09]} 1-0

[Event "Polish Youth B18 Championship 2023"]
[Site "Jastrzebia Gora"]
[Date "2023.03.13"]
[Round "3.19"]
[White "Sternik, Piotr"]
[Black "Paprocki, Antoni"]
[Result "0-1"]
[ECO "E15"]
[WhiteElo "1746"]
[BlackElo "2255"]
[Annotator "TA"]
[PlyCount "66"]
[EventDate "2023.03.11"]
[EventType "swiss"]
[EventCountry "POL"]
[SourceTitle "playchess.com"]
[Source "ChessBase"]
[SourceQuality "1"]
[TimeControl "40/5400+30:1800+30"]

{[%evp 11,66,20,25,12,8,0,0,0,12,0,11,0,25,22,17,20,53,0,0,0,3,-181,-172,-174,-187,-184,-186,-478,-466,-642,-477,-798,-663,-837,-820,-779,-829,-810,-762,-844,-844,-840,-838,-794,-801,-857,-840,-827,-753,-745,-713,-764,-755,-1761,-1745,-29993,-29994]} 1. d4 {[%emt 0:00:04]} Nf6 {[%emt 0:00:51]} 2. c4 {[%emt 0:00:04]} e6 {[%emt 0:00:06]} 3. Nf3 {[%emt 0:00:04]} b6 {[%emt 0:00:05]} 4. g3 {[%emt 0:00:23]} Ba6 {[%emt 0:00:05]} 5. Qc2 {[%emt 0:00:07]} Bb7 {[%emt 0:00:30]} 6. Bg2 {[%emt 0:00:14]} c5 {[%emt 0:00:04]} 7. d5 {[%emt 0:00:46] E15: Queen's Indian: 4 g3 sidelines, 4 g3 Ba6 and 4 g3 Bb7 early deviations.} exd5 {[%emt 0:00:23]} 8. cxd5 {[%emt 0:00:05]} Nxd5 {[%emt 0:00:11]} 9. O-O {[%emt 0:00:27][%cal Bh1f1,Bf1d1,Bd1d5][%mdl 32] The position is equal.} Be7 {[%emt 0:00:29] Wards off Ng5} 10. Rd1 {[%emt 0:00:40][%mdl 1024] White has compensation.} Qc8 {[%emt 0:00:15][%cal Ob8c6]} 11. a3 {[%emt 0:00:06]} Nf6 {[%emt 0:05:16]} 12. Bg5 $1 {[%emt 0:00:38]} O-O {[%emt 0:03:58]} 13. Nc3 {[%emt 0:00:33]} d5 {[%emt 0:04:35] [#]} 14. Nxd5 $146 {[%emt 0:35:02]} ({Predecessor:} 14. Bxf6 Bxf6 15. Nxd5 Bxd5 16. Rxd5 Nc6 17. Rad1 Nd4 18. Qd2 Nxf3+ 19. Bxf3 Rb8 20. Qc2 {½-½ Ju,W (2443)-Kovanova,B (2408) Nanjing FIDE GP (Women) 2009 (5)}) 14... Nxd5 $11 {[%emt 0:10:00]} 15. Rxd5 {[%emt 0:00:03][%cal Og5e7][%mdl 64] Remove Defender} f6 {[%emt 0:01:14] [#]} 16. Qc4 {[%emt 0:28:52] [#] Loses the game.} b5 $1 $19 {[%emt 0:03:46]} (16... fxg5 $2 17. Rd8+ Kh8 18. Rxc8 Bxc8 19. Ne5 $18) (16... Qe6 17. Rxc5 Qxc4 18. Rxc4 fxg5 19. Rc7 $11) 17. Qa2 {[%emt 0:07:56] [#]} Qe6 $1 {[%emt 0:01:17]} (17... fxg5 $2 18. Rxc5+ Kh8 19. Rxc8 $18) (17... c4 18. Rxb5 Ba6 19. Be3 $16) 18. Bh3 {[%emt 0:08:08]} (18. Rd7 $2 Qxa2 19. Rxa2 Nxd7 $19) 18... Qf7 {[%emt 0:03:02]} (18... Qxd5 $2 19. Be6+ $18) 19. e4 {[%emt 0:12:23]} (19. Re5 Qxa2 20. Rxa2) 19... fxg5 {[%emt 0:04:16]} ({Weaker is} 19... Bxd5 20. exd5 Kh8 21. Bf4 $11) 20. Ne5 {[%emt 0:00:33]} Bxd5 {[%emt 0:00:15]} 21. exd5 {[%emt 0:00:57]} (21. Qxd5 $142 Qxd5 22. exd5) 21... Qxf2+ {[%emt 0:00:31]} 22. Kh1 {[%emt 0:00:03] Threatens to win with d6+.} Bd6 {[%emt 0:00:13]} 23. Rf1 {[%emt 0:02:41]} Qxf1+ {[%emt 0:00:23]} ({And not} 23... Qe2 24. Be6+ Kh8 25. Rxf8+ Bxf8 26. Nf7+ Kg8 27. Ne5+ Kh8 28. Nf7+ Kg8 29. Ne5+ Kh8 $11) 24. Bxf1 {[%emt 0:00:04]} Rxf1+ {[%emt 0:00:06]} 25. Kg2 {[%emt 0:00:02]} Rf8 {[%emt 0:01:43]} 26. Nf3 {[%emt 0:01:18]} g4 {[%emt 0:02:15]} 27. Ng5 {[%emt 0:00:12]} Nd7 {[%emt 0:02:04] Hoping for ...Rae8.} 28. Qb1 {[%emt 0:00:12]} g6 {[%emt 0:01:07] White must now prevent ...Rae8.} 29. Ne4 {[%emt 0:01:02]} Be5 {[%emt 0:00:52]} 30. Qd1 {[%emt 0:00:37]} Nf6 {[%emt 0:02:10]} 31. d6 {[%emt 0:01:11]} Bd4 {[%emt 0:03:36]} 32. Ng5 {[%emt 0:00:21]} Nd5 {[%emt 0:00:42] ( -> ...Ne3+)} ({Not} 32... Bxb2 33. Qb3+ c4 34. Qxb2 $11) 33. Qb3 {[%emt 0:00:24]} Rf2+ {[%emt 0:00:07] Weighted Error Value: White=0.59/Black=0.13 (very precise)} 0-1

[Event "Polish Youth B18 Championship 2023"]
[Site "Jastrzebia Gora"]
[Date "2023.03.13"]
[Round "3.20"]
[White "Zeissel, Andrzej"]
[Black "Kolodziejski, Piotr"]
[Result "0-1"]
[ECO "B99"]
[WhiteElo "1717"]
[BlackElo "2118"]
[Annotator "TA"]
[PlyCount "92"]
[EventDate "2023.03.11"]
[EventType "swiss"]
[EventCountry "POL"]
[SourceTitle "playchess.com"]
[Source "ChessBase"]
[SourceQuality "1"]
[TimeControl "40/5400+30:1800+30"]

{[%evp 22,92,43,52,72,58,166,75,79,59,63,81,129,132,120,45,116,67,120,91,90,94,110,46,40,26,39,28,31,-467,-509,-819,-771,-704,-358,-1140,-732,-727,-716,-785,-775,-783,-768,-778,-723,-718,-702,-818,-795,-962,-953,-897,-814,-1648,-1318,-1639,-840,-12834,-12833,-12838,-12839,-29991,-29992,-29994,-29992,-29992,-29988,-29987,-29988,-29982,-29982,-29986,-29987]} 1. e4 {[%emt 0:00:02]} c5 {[%emt 0:00:03]} 2. Nf3 {[%emt 0:00:04]} d6 {[%emt 0:00:05]} 3. d4 {[%emt 0:00:03]} cxd4 {[%emt 0:00:05]} 4. Nxd4 {[%emt 0:00:05]} Nf6 {[%emt 0:00:07]} 5. Nc3 {[%emt 0:00:06]} a6 {[%emt 0:00:05]} 6. Bg5 {[%emt 0:00:10]} e6 {[%emt 0:00:13]} 7. f4 {[%emt 0:00:19]} Nbd7 {[%emt 0:00:41]} 8. Qf3 {[%emt 0:00:19]} Qc7 {[%emt 0:01:17]} 9. O-O-O {[%emt 0:00:22]} Be7 {[%emt 0:00:21]} 10. g4 {[%emt 0:00:35]} h6 {[%emt 0:01:21]} 11. Bxf6 {[%emt 0:04:49]} Bxf6 {[%emt 0:00:11]} 12. h4 {[%emt 0:02:38]} Nb6 {[%emt 0:10:04] B99: Sicilian Najdorf: 6 Bg5 e6 7 f4 Be7 8 Qf3 Qc7 9 0-0-0 Nbd7.} 13. g5 {[%emt 0:07:37]} (13. Be2 $5 {[%cal Rg4g5]}) 13... Be7 {[%emt 0:01:08] [#]} (13... Bxd4 $14 14. Rxd4 Qc5) 14. g6 {[%emt 0:06:50] [#]} O-O $146 {[%emt 0:17:29] [#] White is better.} ({Predecessor:} 14... f6 15. Bh3 e5 16. Ne6 Bxe6 17. Bxe6 Nd7 18. Nd5 Qc6 19. Rd3 Nc5 20. Rc3 b5 21. Bf7+ Kf8 22. b4 exf4 23. bxc5 dxc5 24. Nxe7 Kxe7 25. Bd5 {1-0 Januszkiewicz,W (1830)-Ryk,M (1516) POL-chT U19 1st League 2013 (2)}) 15. gxf7+ {[%emt 0:10:58]} Rxf7 {[%emt 0:01:19]} 16. Bh3 {[%emt 0:03:53]} Rf6 {[%emt 0:02:37]} ({Better is} 16... e5 17. Nf5 exf4) 17. Rhg1 {[%emt 0:04:22]} Bf8 {[%emt 0:03:38]} 18. Rg2 {[%emt 0:04:45]} (18. f5 $16) 18... Qf7 {[%emt 0:06:01]} ({Black should try} 18... e5 $14 19. Nf5 Kh8) 19. Nde2 {[%emt 0:06:02]} (19. f5 $16) 19... Nc4 {[%emt 0:06:41]} ({Black should play} 19... Bd7 $14) 20. Qd3 {[%emt 0:04:14]} b5 {[%emt 0:02:49]} 21. b3 {[%emt 0:14:01]} Nb6 {[%emt 0:08:09]} 22. e5 {[%emt 0:03:54]} (22. Qd4 $16 Nd7 23. f5) 22... dxe5 $14 {[%emt 0:01:48] Threatens to win with ...Bb7.} 23. Ne4 {[%emt 0:00:12]} (23. fxe5 Rf3 24. Qd8 Rxh3 $17) 23... exf4 $1 {[%emt 0:06:55][%cal Ob6d5]} 24. Nxf6+ {[%emt 0:06:12]} ({Don't play} 24. Qd8 Rg6 25. Nd6 (25. Qxb6 Rxg2 26. Bxg2 f3 $17) 25... Qf6 26. Qxb6 Rxg2 27. Bxg2 f3 28. Bxf3 Qxf3 29. Nxc8 Qxe2 $17) 24... Qxf6 {[%emt 0:00:05]} 25. Qd4 {[%emt 0:01:20][%mdl 8192] Now White is beyond hope.} (25. Rg6 $14 Qa1+ 26. Kd2) 25... e5 $19 {[%emt 0:05:00][%mdl 64] Discovered Attack} ({Weaker is} 25... Qxh4 26. Rdg1 (26. Qxf4 $2 {too greedy.} Qxh3 27. Rg3 Qf5 $19) (26. Nxf4 e5 $16) (26. Qxb6 Qxh3 27. Nxf4 Qf3 $11) 26... Qe7 27. Nxf4 $16 (27. Qxb6 f3 $16)) 26. Qe4 {[%emt 0:02:42]} (26. Qc3 $142 f3 27. Rf2 Bxh3 28. Qxf3 Qxf3 29. Rxf3) 26... Bxh3 {[%emt 0:03:43]} 27. Rg6 {[%emt 0:00:13]} Bf5 {[%emt 0:01:22]} 28. Qxa8 $2 {[%emt 0:03:18]} (28. Rxf6 Bxe4 29. Rxb6) 28... Nxa8 {[%emt 0:01:04]} 29. Rxf6 {[%emt 0:00:02]} gxf6 {[%emt 0:00:08]} 30. Rd8 {[%emt 0:02:41]} Nb6 {[%emt 0:01:02][%cal Ba8b6,Bb6d7,Bd7c5,Bc5e4][%mdl 32]} 31. Rb8 {[%emt 0:00:06]} Nd7 {[%emt 0:01:42]} 32. Ra8 {[%emt 0:01:07]} Nc5 {[%emt 0:05:46]} 33. Nc3 {[%emt 0:00:49]} Kf7 {[%emt 0:03:56]} 34. Kd2 {[%emt 0:02:22]} e4 {[%emt 0:02:42][%cal Be5e4,Be4e3][%mdl 32] ...e3+ would be deadly.} 35. Nd5 {[%emt 0:00:58]} Bd6 {[%emt 0:00:53]} 36. b4 {[%emt 0:00:39]} e3+ {[%emt 0:01:12]} 37. Ke1 {[%emt 0:03:05]} Ne4 {[%emt 0:00:26] Hoping for ...Be6.} 38. Rxa6 {[%emt 0:00:30]} Be5 {[%emt 0:00:58] aiming for ...Nc3.} 39. a4 {[%emt 0:01:43]} Be6 {[%emt 0:01:36]} 40. Ra7+ {[%emt 0:00:00]} Kg6 {[%emt 0:00:00]} 41. Ne7+ {[%emt 0:02:05]} Kh5 {[%emt 0:00:18] Black mates.} 42. axb5 {[%emt 0:00:21]} Bc3+ {[%emt 0:00:31]} 43. Ke2 {[%emt 0:00:37]} Bg4+ {[%emt 0:00:26]} 44. Kd3 {[%emt 0:00:05]} e2 {[%emt 0:00:23]} 45. Nd5 {[%emt 0:00:51]} Nf2+ {[%emt 0:00:30]} 46. Kc4 {[%emt 0:00:48]} Be6 {[%emt 0:00:19] Weighted Error Value: White=0.91/Black=0.79} 0-1

[Event "Polish Youth B18 Championship 2023"]
[Site "Jastrzebia Gora"]
[Date "2023.03.13"]
[Round "3.21"]
[White "Smuda, Tomasz"]
[Black "Wesolek, Krzysztof"]
[Result "1-0"]
[ECO "C77"]
[WhiteElo "1654"]
[BlackElo "1765"]
[Annotator "NA RC COMBH"]
[PlyCount "65"]
[EventDate "2023.03.11"]
[EventType "swiss"]
[EventCountry "POL"]
[SourceTitle "playchess.com"]
[Source "ChessBase"]
[SourceQuality "1"]
[TimeControl "40/5400+30:1800+30"]

1. e4 {[%emt 0:00:06]} e5 {[%emt 0:00:04]} 2. Nf3 {[%emt 0:00:15]} Nc6 {[%emt 0:00:18]} 3. Bb5 {[%emt 0:00:25]} a6 {[%emt 0:00:05]} 4. Ba4 {[%emt 0:00:13]} Nf6 {[%emt 0:00:08]} 5. Nc3 {[%emt 0:00:36]} Bd6 {[%emt 0:04:39]} 6. O-O {[%emt 0:02:33]} O-O {[%emt 0:00:18]} 7. d3 {[%emt 0:00:35]} h6 {[%emt 0:00:50]} 8. Re1 {[%emt 0:04:44]} Re8 {[%emt 0:01:07]} 9. a3 {[%emt 0:01:42]} Bf8 {[%emt 0:15:47]} 10. Bb3 {[%emt 0:04:54]} d6 {[%emt 0:02:34]} 11. h3 {[%emt 0:01:23]} Bd7 {[%emt 0:09:32]} 12. Nd5 {[%emt 0:07:30]} Nxd5 {[%emt 0:02:17]} 13. Bxd5 {[%emt 0:00:42]} Be6 {[%emt 0:02:05]} 14. b4 {[%emt 0:10:18]} Bxd5 {[%emt 0:08:12]} 15. exd5 {[%emt 0:00:09]} Ne7 {[%emt 0:00:06]} 16. c4 {[%emt 0:00:58]} Nf5 {[%emt 0:15:06]} 17. Bb2 {[%emt 0:06:57]} g6 {[%emt 0:00:53]} 18. Re4 {[%emt 0:23:21]} Bg7 {[%emt 0:02:41]} 19. Qe2 {[%emt 0:02:32]} Ne7 {[%emt 0:06:29]} 20. Re1 {[%emt 0:11:13]} f5 {[%emt 0:00:29]} 21. Re3 {[%emt 0:00:09]} c6 {[%emt 0:18:53]} 22. Nd4 {[%emt 0:12:52]} cxd5 {[%emt 0:02:03]} 23. Ne6 {[%emt 0:00:53]} Qd7 {[%emt 0:00:24]} 24. Nxg7 {[%emt 0:00:07]} Kxg7 {[%emt 0:00:02]} 25. Rxe5 {[%emt 0:00:23]} Kf7 {[%emt 0:02:16]} 26. Re6 {[%emt 0:01:19]} dxc4 {[%emt 0:05:01]} 27. Rf6+ {[%emt 0:01:04]} Kg8 {[%emt 0:00:01]} 28. dxc4 {[%emt 0:00:36]} Rac8 {[%emt 0:01:38]} 29. Rd1 {[%emt 0:03:39]} Rf8 {[%emt 0:00:31]} 30. Rfxd6 {[%emt 0:00:13]} Qc7 {[%emt 0:00:22]} 31. Qe5 {[%emt 0:00:33]} Kf7 {[%emt 0:00:35]} 32. Qe6+ {[%emt 0:00:43]} Ke8 {[%emt 0:00:08]} 33. Rd7 {[%emt 0:00:10]} 1-0